Workbook

Sheet Mode d'emploi
B2: DILO — Vis ma journée
B3: Day In the Life Of · version allégée
B5: 1. Avant | C5: Onglet « Avant – Perception » : note en 2 minutes comment tu CROIS répartir ta journée, et ta cible IDÉALE.
B6: 2. Pendant | C6: Onglet « Mon DILO » : au fil de l'eau, par blocs de 5 à 15 min, décris l'activité et choisis UNE couleur.
B7: 3. Après | C7: Onglet « Synthèse » : compare le perçu, le réel et l'idéal. Repère 2–3 pertes à réduire en priorité.
B9: LES 4 COULEURS
B11: Couleur | C11: Famille | D11: Ce que ça recouvre | E11: Objectif
B12: VERT | C12: Valeur ajoutée client | D12: Ce pour quoi le client / projet me paie. | E12: À renforcer | F12: VA -Valeur Ajoutée
B13: ORANGE | C13: Valeur requise (entreprise) | D13: Obligatoire sans valeur directe : normes, contrôles, reporting. | E13: À réduire | F13: RVA -VA Requise
B14: ROUGE | C14: Pure perte | D14: 7 types de pertes ou Muda provenant du lean : Transport, Ergonomie, Temps d'attente, Reprises, Inventaires, Surqualité, Surproduction | E14: À éliminer | F14: NVA -Non VA
B15: BLEU | C15: Gaspillage sur l'humain | D15: 7 types de pertes liés à l'humain : routines, conflits, silos, désinformation, démotivation, stress/pression, indécision | E15: À réduire | F15: PVA -Personnes VA
B16: VIOLET | C16: Pertes de Focus / productivité | D16: 3 types de pertes liées au focus : interruptions, dispersion (mutlitâches), dilution (dans le temps) | E16: À réduire | F16: FVA -Focus VA
B18: Astuce : une seule couleur par ligne — la dominante de l'activité. On note la tendance, pas la seconde près.

Sheet Pertes
A1: VA -Valeur Ajoutée | C1: RVA -VA Requise | E1: NVA -Non VA | G1: PVA -Personnes VA | I1: FVA -Focus VA
A2: A renforcer | C2: A réduire | E2: A éliminer | G2: À réduire | I2: À réduire
A3: Client externe | B3: Activité permettant de produire ou réaliser de la valeur pour un client externe | C3: Management | D3: Activités de pilotage et de gestion | E3: Transport | F3: Déplacements inutiles d'objets/pièces | G3: Routine | H3: Activités réalisés sans véritable attention et intention, de manière détachée avec plus de risque d'erreur et moins de productivité | I3: Interruptions | J3: 20% des interruptions (mail/appel/personne) conduisent à 2h de perte de productivité en moyenne
A4: Client interne | B4: Activité permettant de produire ou réaliser de la valeur pour un client interne | C4: Normes | D4: Application des normes | E4: Ergonomie | F4: Déplacements inutiles ou inefficaces de personnes | G4: Démotivation | H4: Procrastination, "quiet quitting" ou désinvestissement sur cette activité | I4: Dispersion | J4: Dispersion sur le multitâches (efficace seulement pour 2% de la population), 40% d'improductivité et +50% d'erreurs…
C5: Reporting | D5: Activités d'information | E5: Temps d'attente | F5: Attente d'information/ressources ou prise de décisions | G5: Conflit | H5: Tensions avec d'autres personnes conduisant à plus de réserve/distance | I5: Dilution | J5: Reprise de tâche arrêtées, dispersées ou procrastinées
C6: Admin | D6: Temps administratif (email…) | E6: Reprises | F6: Refaire une tâche erronnée ou mal faite, ou faire en redondance, ou relancer | G6: Silos | H6: Manque de partage/communication entre silos
E7: Inventaire | F7: Accumuler matière première, produits finis ou documents, informations ou dossiers | G7: Désinformation | H7: Information non disponible, ou mauvaise information, ou trop d'infos
E8: Surqualité | F8: Ressources surqualifiées, solution sur-dimensionnée, travail trop précis… | G8: Stress/pression | H8: Travail en mode stress conduisant à des erreurs, ou besoins de compenser
E9: Surproduction | F9: Intervention au-delà du périmètre, validation inutile | G9: Indécision | H9: Lenteur voire paralysie sur la prise de décision d'une action ou d'un projet
A11: Détails
A12: Client externe | B12: Conception, codage, création de nouvelles fonctionnalités | C12: Management | D12: Réunion d'équipe | E12: Transport | F12: Déplacement outils, machines, véhicules | G12: Routine | H12: Tâche automatique (sans véritable attention) | I12: Interruptions | J12: Collègue/Manager
B13: Production, assemblage, empaquetage pour livrer au client | C13: Management | D13: Entretiens d'évaluation | E13: Transport | F13: Déplacements inutiles (la situation aurait pu être résolue sans) | G13: Routine | H13: Habitude cristallisée (faire comme avant) | I13: Interruptions | J13: Mail/Messagerie
B14: Assistance directe au client pour utiliser le produit | C14: Management | D14: Gestion attribution rôles | E14: Transport | F14: Déplacement matières et matériaux, produits semi-finis ou finis, | G14: Routine | H14: Exécution sans réflexion (cliquer, valider) | I14: Interruptions | J14: Notification
C15: Management | D15: Gestion congés | I15: Interruptions | J15: Réunion/Appel
A16: Client interne | B16: Fourniture de matériels, outils, documents internes | E16: Ergonomie | F16: Se déplacer d'un endroit à un autre | G16: Démotivation | H16: Procrastination (repousser les tâches) | I16: Interruptions | J16: Auto-interruption
B17: Support logistique, IT, RH pour les équipes | C17: Normes | D17: Analyse et suivi, veille des normes | E17: Ergonomie | F17: Se déplacer d'un endroit à un autre (réunion) | G17: Démotivation | H17: Quiet quitting (faire le minimum) | I17: Interruptions | J17: Recherche/Attente
B18: Conseils, formations, partage de compétences | C18: Normes | D18: Application des normes | E18: Ergonomie | G18: Démotivation | H18: Manque d'intérêt (travail non prioritaire) | I18: Interruptions | J18: Changement de projet
C19: Normes | D19: Contrôle des normes | I19: Interruptions | J19: Autre
E20: Temps d'attente | F20: Attente de décision (manager indisponible) | G20: Conflit | H20: Tension interpersonnelle (friction, non-dit)
C21: Reporting | D21: Activités d'information | E21: Temps d'attente | F21: Attente d'information (données manquantes) | G21: Conflit | H21: Incompréhension d'équipe (mauvaise communication) | I21: Dispersion | J21: Multitâche entre 2 projets
C22: Reporting | D22: Construction et évaluation de tableaux de reporting | E22: Temps d'attente | F22: File d'attente (ressource partagée occupée) | G22: Conflit | H22: Approches contradictoires (désaccord) | I22: Dispersion | J22: Multitâche entre projet et activités mail
C23: Reporting | D23: Réunions de reporting | E23: Temps d'attente | I23: Dispersion | J23: Multitâche entre activité récurrente et activité projet
G24: Silos | H24: Manque de partage (chacun fait de son côté) | I24: Dispersion | J24: Autre
C25: Admin | D25: Temps administratif (email…) | E25: Reprises | F25: Correction d'erreurs (rework) | G25: Silos | H25: Communication cloisonnée (entre équipes)
C26: Admin | D26: Gestion des outils informatiques de suivi des activités (congés, notes de frais…) | E26: Reprises | F26: Redondance involontaire (tâche déjà faite) | G26: Silos | H26: Dépendances cachées (découvertes tard) | I26: Dilution | J26: Tâche arrêtée (abandonner, reprendre plus tard)
C27: Admin | D27: Gestion de l'informatique (PC, mots de passe, cybersécurité, mises à jour…) | E27: Reprises | F27: Relance (dossier oublié ou en retard) | I27: Dilution | J27: Relance tardive (reprendre après 2 semaines)
E28: Reprises | G28: Désinformation | H28: Info incomplète (contexte partiel) | I28: Dilution
G29: Désinformation | H29: Trop de canaux (Slack, email, docs, réunion) | I29: Dilution
E30: Inventaire | F30: Accumulation de documents (archives stagnantes) | G30: Désinformation | H30: Obsolescence (infos à jour hier, fausses aujourd'hui) | I30: Dilution
E31: Inventaire | F31: Stock excédentaire (matières, fournitures) | I31: Dilution | J31: Autre
E32: Inventaire | F32: Backlog stagnant (tâches jamais traitées) | G32: Stress/pression | H32: Urgence artificielle (deadline serrée)
G33: Stress/pression | H33: Surcharge (trop de tâches parallèles)
E34: Surqualité | F34: Finition excessive (détails non demandés) | G34: Stress/pression | H34: Sous-dotation (équipe trop petite)
E35: Surqualité | F35: Double validation (approvals inutiles)
E36: Surqualité | F36: Documentation exhaustive (trop détaillée) | G36: Indécision | H36: Analyse paralysante (étudier sans décider)
G37: Indécision | H37: Consensus obligatoire (attendre accord de tous)
E38: Surproduction | F38: Scope creep (ajout de fonctionnalités non demandées) | G38: Indécision | H38: Peur de se tromper (reporter la décision)
E39: Surproduction | F39: Production à l'avance (fabrication anticipée)
E40: Surproduction | F40: Variantes inutiles (proposer trop d'options)

Sheet Avant – Perception
B2: Avant de mesurer — ma perception
B3: Sur une journée type de 8 h. Renseigne les heures perçues, puis ta cible idéale.
B5: 1 · Ce que je CROIS faire
C6: VA- Valeur Ajoutée | D6: RVA -VA Requise | E6: NVA -Non VA | F6: PVA -Personnes VA | G6: FVA -Focus VA | H6: Total
B7: Temps (heures) | C7: 4.5 | D7: 1.0 | E7: 1.8 | F7: 0.5 | G7: 0.2 | H7: =SUM(C7:G7) -> 8.0
B8: Répartition (%) | C8: =IF($H$7=0,0,C7/$H$7) -> 56.3% | D8: =IF($H$7=0,0,D7/$H$7) -> 12.5% | E8: =IF($H$7=0,0,E7/$H$7) -> 22.5% | F8: =IF($H$7=0,0,F7/$H$7) -> 6.3% | G8: =IF($H$13=0,0,G7/$H$13) -> 2.5% | H8: =IF($H$7=0,0,SUM(C8:G8)) -> 100.0%
B9: Cellules bleues = à remplir librement (total libre).
B11: 2 · Ma cible IDÉALE (réaliste)
C12: VA- Valeur Ajoutée | D12: RVA -VA Requise | E12: NVA -Non VA | F12: PVA -Personnes VA | G12: FVA -Focus VA | H12: Total
B13: Temps (heures) | C13: 6.0 | D13: 1.0 | E13: 0.3 | F13: 0.5 | G13: 0.2 | H13: =SUM(C13:G13) -> 8.0
B14: Répartition (%) | C14: =IF($H$13=0,0,C13/$H$13) -> 75.0% | D14: =IF($H$13=0,0,D13/$H$13) -> 12.5% | E14: =IF($H$13=0,0,E13/$H$13) -> 3.8% | F14: =IF($H$13=0,0,F13/$H$13) -> 6.3% | G14: =IF($H$13=0,0,G13/$H$13) -> 2.5% | H14: =IF($H$13=0,0,SUM(C14:G14)) -> 100.0%
B15: Plus de vert, moins de rouge — atteignable, pas parfaite.

Sheet Mon DILO
A2: Mon DILO — journal de la journée
A3: Heure début / fin (la durée se calcule seule). Pour chaque interruption : note son TYPE et le temps de REPRISE (min pour se remettre dans la tâche).
A4: Nom : | B4: ____________________
A5: Projet : | B5: ____________________
A6: Date : | B6: __ / __ / ____
A8: Heure début | B8: Heure fin | C8: Durée (min) | D8: Activité | E8: Couleur d'activité | F8: Catégorie | G8: % Pertes | H8: Tps perdu (min) | I8: Détails | J8: Tâche / Projet
A9: 09:00:00 | B9: 09:10:00 | C9: =IF(AND($A9<>"",$B9<>""),($B9-$A9)*1440,"") -> 10 | D9: Brief équipe / passation | E9: RVA -VA Requise | F9: Management | G9: 100% | H9: =G9*C9 -> 10 | I9: Point d'équipe | J9: Réunion
A10: 09:10:00 | B10: 09:40:00 | C10: =IF(AND($A10<>"",$B10<>""),($B10-$A10)*1440,"") -> 30 | D10: Conception (tâche de fond) | E10: VA -Valeur Ajoutée | F10: Client externe | G10: 0% | H10: 0 | I10: Deep work | J10: Projet Alpha
A11: 09:40:00 | B11: 09:45:00 | C11: =IF(AND($A11<>"",$B11<>""),($B11-$A11)*1440,"") -> 5 | D11: Mail consulté en cours de tâche | E11: FVA -Focus VA | F11: Dispersion | G11: 50% | H11: 2.5 | I11: Mail/Messagerie | J11: Synchronisation
A12: 09:45:00 | B12: 10:00:00 | C12: =IF(AND($A12<>"",$B12<>""),($B12-$A12)*1440,"") -> 15 | D12: Question collègue → changt de sujet | E12: FVA -Focus VA | F12: Interruptions | G12: 50% | H12: 7.5 | I12: Appel manager | J12: Projet Gamma
A13: =B12 -> 10:00:00 | B13: 10:30:00 | C13: =IF(AND($A13<>"",$B13<>""),($B13-$A13)*1440,"") -> 30 | D13: Reprise d'un dossier suite à une erreur | E13: NVA -Non VA | F13: Reprises | G13: 100% | H13: 30 | I13: Priorité validée le matin | J13: Urgence
A14: =B13 -> 10:30:00 | B14: 11:30:00 | C14: 60 | D14: Travail de fond de résolution technique | E14: VA -Valeur Ajoutée | F14: Client interne | G14: 0% | H14: 0 | I14: Deep work | J14: Projet Alpha
A15: =B14 -> 11:30:00 | B15: 11:45:00 | C15: 15 | D15: Temps d'explication des progrès | E15: PVA -Personnes VA | F15: PVA -Personnes VA | G15: 50% | H15: 7.5 | I15: Tensions | J15: Projet Alpha
A16: 11:45:00 | B16: 12:00:00 | C16: =IF(AND($A16<>"",$B16<>""),($B16-$A16)*1440,"") -> 15 | D16: Réunion de travail sur projet | E16: FVA -Focus VA | F16: Interruptions | G16: 50% | H16: 7.5 | I16: Deep work | J16: Projet Alpha
A17: =B16 -> 12:00:00 | B17: 12:30:00 | C17: 30 | D17: Se déplacer pour rencontrer le client | E17: NVA -Non VA | F17: Ergonomie | G17: 50% | H17: 15 | I17: Nouvelle priorité validée le matin | J17: Urgence
A18: =B17 -> 12:30:00 | B18: 12:45:00 | C18: 15 | D18: Echange sur un projet | E18: PVA -Personnes VA | F18: PVA -Personnes VA | G18: 50% | H18: 7.5 | I18: Parler à demi-mots | J18: Projet Alpha
C19: =IF(AND($A19<>"",$B19<>""),($B19-$A19)*1440,"") -> 
C20: =IF(AND($A20<>"",$B20<>""),($B20-$A20)*1440,"") -> 
A22: Total (min) | C22: =SUM(C9:C20) -> 225 | H22: =SUM(H9:H20) -> 88

Sheet Synthèse
B2: Synthèse — Perçu · Réel · Idéal
B3: Le réel est calculé automatiquement depuis « Mon DILO ».
B5: Perçu (avant mesure)
C6: VA -Valeur Ajoutée | D6: RVA -VA Requise | E6: NVA -Non VA | F6: PVA -Personnes VA | G6: FVA -Focus VA | H6: Total
B7: Temps (heures) | C7: ='Avant – Perception'!C7 -> 4.5 | D7: ='Avant – Perception'!D7 -> 1.0 | E7: ='Avant – Perception'!E7 -> 1.8 | F7: ='Avant – Perception'!F7 -> 0.5 | G7: ='Avant – Perception'!G7 -> 0.2 | H7: =SUM(C7:G7) -> 8.0
B8: Répartition (%) | C8: =IF($H$7=0,0,C7/$H$7) -> 56.3% | D8: =IF($H$7=0,0,D7/$H$7) -> 12.5% | E8: =IF($H$7=0,0,E7/$H$7) -> 22.5% | F8: =IF($H$7=0,0,F7/$H$7) -> 6.3% | G8: =IF($H$7=0,0,G7/$H$7) -> 2.5% | H8: =IF($H$7=0,0,SUM(C8:G8)) -> 100%
B10: Réel (mesuré)
C11: VA -Valeur Ajoutée | D11: RVA -VA Requise | E11: NVA -Non VA | F11: PVA -Personnes VA | G11: FVA -Focus VA | H11: Total
B12: Temps (heures) | C12: =SUMIF('Mon DILO'!E9:E20,"VA -Valeur Ajoutée",'Mon DILO'!C9:C20)/60 -> 1.5 | D12: =SUMIF('Mon DILO'!E9:E20,"RVA -VA Requise",'Mon DILO'!C9:C20)/60 -> 0.2 | E12: =SUMIF('Mon DILO'!E9:E20,"NVA -Non VA",'Mon DILO'!C9:C20)/60 -> 1.0 | F12: =SUMIF('Mon DILO'!E9:E20,"PVA -Personnes VA",'Mon DILO'!C9:C20)/60 -> 0.5 | G12: =SUMIF('Mon DILO'!E9:E20,"FVA -Focus VA",'Mon DILO'!C9:C20)/60 -> 0.6 | H12: =SUM(C12:G12) -> 3.8
B13: Répartition (%) | C13: =IF($H$12=0,0,C12/$H$12) -> 40.0% | D13: =IF($H$12=0,0,D12/$H$12) -> 4.4% | E13: =IF($H$12=0,0,E12/$H$12) -> 26.7% | F13: =IF($H$12=0,0,F12/$H$12) -> 13.3% | G13: =IF($H$12=0,0,G12/$H$12) -> 15.6% | H13: =IF($H$12=0,0,SUM(C13:G13)) -> 100%
B15: Idéal (cible)
C16: VA -Valeur Ajoutée | D16: RVA -VA Requise | E16: NVA -Non VA | F16: PVA -Personnes VA | G16: FVA -Focus VA | H16: Total
B17: Temps (heures) | C17: ='Avant – Perception'!C13 -> 6.0 | D17: ='Avant – Perception'!D13 -> 1.0 | E17: ='Avant – Perception'!E13 -> 0.3 | F17: ='Avant – Perception'!F13 -> 0.5 | G17: ='Avant – Perception'!G13 -> 0.2 | H17: =SUM(C17:G17) -> 8.0
B18: Répartition (%) | C18: =IF($H$17=0,0,C17/$H$17) -> 75.0% | D18: =IF($H$17=0,0,D17/$H$17) -> 12.5% | E18: =IF($H$17=0,0,E17/$H$17) -> 3.8% | F18: =IF($H$17=0,0,F17/$H$17) -> 6.3% | G18: =IF($H$17=0,0,G17/$H$17) -> 2.5% | H18: =IF($H$17=0,0,SUM(C18:G18)) -> 100%
B20: INDICATEURS CLÉS RÉEL
B21: Temps total mesuré (min) | D21: =SUM('Mon DILO'!C9:C20) -> 225
B22: Perte réelle de reconcentration (min) | D22: =SUM('Mon DILO'!H9:H21) -> 88
B23: Part de pure perte (rouge) | D23: =IF($H$12=0,0,E13) -> 26.7%
